[Event "II Open Internacional Ateneo Marítimo (60 Aniversario)"]
[Site "C/La reina 68 (Valencia), Spain"]
[Date "2018.09.15"]
[Round "1.1"]
[White "Plaskett, H James"]
[Black "Paris Turegano, Javier"]
[Result "1-0"]
[TimeControl "7m+3s por jugada"]
[WhiteFideId "400238"]
[BlackFideId "2219352"]
[WhiteElo "2450"]
[BlackElo "1921"]

1. c4 {[%clk 00:07:06]} {[%emt 00:30:44]} c5 {[%clk 00:07:02]} {[%emt
00:00:03]} 2. b3 {[%clk 00:07:08]} {[%emt 00:00:04]} Nc6 {[%clk 00:06:54]}
{[%emt 00:00:07]} 3. Bb2 {[%clk 00:07:10]} {[%emt 00:00:09]} e6 {[%clk
00:06:38]} {[%emt 00:00:13]} 4. Nf3 {[%clk 00:07:09]} {[%emt 00:00:03]} d5
{[%clk 00:06:39]} {[%emt 00:00:03]} 5. e3 {[%clk 00:07:05]} {[%emt 00:00:15]}
d4 {[%clk 00:06:12]} {[%emt 00:00:23]} 6. exd4 {[%clk 00:07:06]} {[%emt
00:00:04]} cxd4 {[%clk 00:06:13]} 7. Bd3 {[%clk 00:07:07]} g6 {[%clk 00:06:09]}
{[%emt 00:00:08]} 8. O-O {[%clk 00:07:08]} {[%emt 00:00:04]} Bg7 {[%clk
00:06:11]} 9. Re1 {[%clk 00:07:06]} {[%emt 00:00:08]} Nge7 {[%clk 00:06:13]}
{[%emt 00:00:08]} 10. Na3 {[%clk 00:07:06]} O-O {[%clk 00:05:56]} {[%emt
00:00:15]} 11. Be4 {[%clk 00:06:59]} {[%emt 00:00:04]} e5 {[%clk 00:05:53]}
{[%emt 00:00:39]} 12. d3 {[%clk 00:06:47]} {[%emt 00:00:04]} f5 {[%clk
00:05:55]} 13. Bxc6 {[%clk 00:06:49]} Nxc6 {[%clk 00:05:56]} 14. c5 {[%clk
00:06:25]} {[%emt 00:00:09]} Qd5 {[%clk 00:05:19]} {[%emt 00:00:58]} 15. Nc4
{[%clk 00:06:00]} {[%emt 00:00:11]} Re8 {[%clk 00:05:16]} {[%emt 00:00:19]} 16.
Nd6 {[%clk 00:05:33]} {[%emt 00:00:15]} Re7 {[%clk 00:05:09]} {[%emt 00:00:29]}
17. Qc2 {[%clk 00:05:14]} {[%emt 00:00:08]} Nb4 {[%clk 00:04:47]} {[%emt
00:00:21]} 18. Qd2 {[%clk 00:04:48]} {[%emt 00:00:34]} a5 {[%clk 00:04:17]}
{[%emt 00:00:28]} 19. Bxd4 {[%clk 00:04:21]} {[%emt 00:00:35]} e4 {[%clk
00:03:53]} {[%emt 00:00:46]} 20. Bxg7 {[%clk 00:04:05]} {[%emt 00:00:13]} Rxg7
{[%clk 00:03:39]} {[%emt 00:00:12]} 21. Qg5 {[%clk 00:03:26]} {[%emt 00:00:29]}
Bd7 {[%clk 00:02:52]} {[%emt 00:00:50]} 22. dxe4 {[%clk 00:03:18]} {[%emt
00:00:11]} fxe4 {[%clk 00:02:54]} {[%emt 00:00:42]} 23. Qxd5+ {[%clk 00:03:07]}
Nxd5 {[%clk 00:02:55]} 24. Rxe4 {[%clk 00:03:06]} {[%emt 00:00:03]} Nc3 {[%clk
00:02:46]} 25. Ree1 {[%clk 00:02:58]} {[%emt 00:00:03]} Bc6 {[%clk 00:02:47]}
{[%emt 00:00:19]} 26. Ne5 {[%clk 00:02:53]} {[%emt 00:00:03]} Re7 {[%clk
00:02:03]} {[%emt 00:00:45]} 27. Re3 {[%clk 00:02:38]} {[%emt 00:00:04]} Nd5
{[%clk 00:02:05]} {[%emt 00:00:15]} 28. Nxc6 {[%clk 00:02:28]} Rxe3 {[%clk
00:02:00]} {[%emt 00:00:09]} 29. fxe3 {[%clk 00:02:29]} {[%emt 00:00:11]} bxc6
{[%clk 00:02:03]} 30. Nc4 {[%clk 00:02:11]} {[%emt 00:00:54]} a4 {[%clk
00:02:00]} 31. e4 {[%clk 00:01:44]} Nc3 {[%clk 00:01:39]} {[%emt 00:00:16]} 32.
Nb6 {[%clk 00:01:42]} {[%emt 00:00:12]} Ra5 {[%clk 00:01:37]} 33. b4 {[%clk
00:01:43]} {[%emt 00:00:03]} Ra7 {[%clk 00:01:34]} {[%emt 00:00:05]} 34. a3
{[%clk 00:01:42]} {[%emt 00:00:05]} Nxe4 {[%clk 00:01:36]} {[%emt 00:00:03]} 35.
Rd1 {[%clk 00:01:43]} Nc3 {[%clk 00:01:29]} {[%emt 00:00:10]} 36. Rd3 {[%clk
00:01:42]} {[%emt 00:00:04]} Ne4 {[%clk 00:01:22]} {[%emt 00:00:10]} 37. Kf1
{[%clk 00:01:34]} {[%emt 00:00:10]} Rf7+ {[%clk 00:01:23]} {[%emt 00:00:18]} 38.
Ke1 {[%clk 00:01:36]} Ra7 {[%clk 00:00:52]} {[%emt 00:00:17]} 39. Re3 {[%clk
00:01:35]} {[%emt 00:00:12]} Nf6 {[%clk 00:00:47]} {[%emt 00:00:04]} 40. Kd2
{[%clk 00:01:36]} {[%emt 00:00:08]} Ng4 {[%clk 00:00:49]} 41. Re6 {[%clk
00:01:33]} Rf7 {[%clk 00:00:30]} {[%emt 00:00:26]} 42. Nxa4 {[%clk 00:01:30]}
{[%emt 00:00:09]} Rf2+ {[%clk 00:00:29]} {[%emt 00:00:04]} 43. Re2 {[%clk
00:01:31]} Rf5 {[%clk 00:00:26]} {[%emt 00:00:03]} 44. Nb6 {[%clk 00:01:30]}
{[%emt 00:00:04]} Nxh2 {[%clk 00:00:26]} {[%emt 00:00:07]} 45. a4 {[%clk
00:01:33]} Nf1+ {[%clk 00:00:27]} 46. Kd3 {[%clk 00:01:30]} {[%emt 00:00:04]}
Rf8 {[%clk 00:00:27]} {[%emt 00:00:07]} 47. Re6 {[%clk 00:01:29]} {[%emt
00:00:07]} Rd8+ {[%clk 00:00:25]} 48. Kc3 {[%clk 00:01:30]} Nd2 {[%clk
00:00:23]} {[%emt 00:00:03]} 49. a5 {[%clk 00:01:32]} Nb1+ {[%clk 00:00:15]}
{[%emt 00:00:13]} 50. Kb2 {[%clk 00:01:34]} {Bandera} 1-0

[Event "II Open Internacional Ateneo Marítimo (60 Aniversario)"]
[Site "C/La reina 68 (Valencia), Spain"]
[Date "2018.09.15"]
[Round "1.2"]
[White "Selva Salvador, Antonio"]
[Black "Cruz Lledo, Pablo"]
[Result "0-1"]
[TimeControl "7m+3s por jugada"]
[WhiteFideId "2223821"]
[BlackFideId "2297361"]
[WhiteElo "1892"]
[BlackElo "2436"]

1. d4 {[%clk 00:07:03]} {[%emt 00:00:11]} d5 {[%clk 00:07:04]} 2. Nf3 {[%clk
00:07:05]} e6 {[%clk 00:07:04]} 3. g3 {[%clk 00:07:07]} c5 {[%clk 00:07:06]} 4.
e3 {[%clk 00:07:08]} {[%emt 00:00:28]} Nc6 {[%clk 00:07:07]} 5. Bg2 {[%clk
00:07:09]} Nf6 {[%clk 00:07:08]} 6. O-O {[%clk 00:07:06]} Bd6 {[%clk 00:07:09]}
7. b3 {[%clk 00:07:07]} O-O {[%clk 00:07:04]} {[%emt 00:00:03]} 8. Bb2 {[%clk
00:07:09]} b6 {[%clk 00:07:06]} 9. Nbd2 {[%clk 00:07:10]} {[%emt 00:00:03]} Qc7
{[%clk 00:07:03]} {[%emt 00:00:05]} 10. Rc1 {[%clk 00:07:11]} {[%emt 00:00:03]}
Ba6 {[%clk 00:06:50]} {[%emt 00:00:13]} 11. Re1 {[%clk 00:07:12]} {[%emt
00:00:21]} Rac8 {[%clk 00:06:44]} 12. Ne5 {[%clk 00:07:12]} Nxe5 {[%clk
00:06:40]} {[%emt 00:00:15]} 13. dxe5 {[%clk 00:07:05]} Bxe5 {[%clk 00:06:40]}
{[%emt 00:00:04]} 14. Bxe5 {[%clk 00:06:45]} {[%emt 00:00:16]} Qxe5 {[%clk
00:06:41]} {[%emt 00:00:35]} 15. c4 {[%clk 00:06:42]} dxc4 {[%clk 00:06:43]} 16.
Nxc4 {[%clk 00:06:43]} {[%emt 00:00:04]} Bxc4 {[%clk 00:06:44]} 17. Rxc4 {[%clk
00:06:44]} Rfd8 {[%clk 00:06:43]} 18. Qc2 {[%clk 00:06:31]} {[%emt 00:00:03]}
Rb8 {[%clk 00:05:55]} {[%emt 00:00:50]} 19. h3 {[%clk 00:06:25]} {[%emt
00:00:21]} Rd7 {[%clk 00:05:51]} {[%emt 00:00:05]} 20. Kh2 {[%clk 00:06:01]}
{[%emt 00:00:12]} Rbd8 {[%clk 00:05:52]} {[%emt 00:00:21]} 21. Re2 {[%clk
00:06:03]} h5 {[%clk 00:05:51]} 22. f4 {[%clk 00:05:31]} {[%emt 00:00:21]} Qa1
{[%clk 00:05:44]} {[%emt 00:00:44]} 23. e4 {[%clk 00:05:21]} Qd1 {[%clk
00:05:43]} 24. e5 {[%clk 00:05:04]} {[%emt 00:00:06]} Qxc2 {[%clk 00:05:44]}
{[%emt 00:00:03]} 25. Rcxc2 {[%clk 00:04:12]} {[%emt 00:00:49]} Nd5 {[%clk
00:05:37]} {[%emt 00:00:16]} 26. a3 {[%clk 00:04:06]} {[%emt 00:00:08]} Nc7
{[%clk 00:05:32]} {[%emt 00:00:20]} 27. b4 {[%clk 00:03:46]} {[%emt 00:00:16]}
cxb4 {[%clk 00:05:26]} {[%emt 00:00:04]} 28. axb4 {[%clk 00:03:46]} {[%emt
00:00:13]} Na6 {[%clk 00:05:27]} 29. Rc4 {[%clk 00:03:09]} {[%emt 00:00:39]}
Rd2 {[%clk 00:05:12]} {[%emt 00:00:08]} 30. Rxd2 {[%clk 00:02:50]} {[%emt
00:00:35]} Rxd2 {[%clk 00:05:14]} 31. g4 {[%clk 00:02:48]} hxg4 {[%clk
00:05:11]} {[%emt 00:00:06]} 32. hxg4 {[%clk 00:02:49]} Rb2 {[%clk 00:05:12]}
33. b5 {[%clk 00:02:39]} {[%emt 00:00:08]} Nc5 {[%clk 00:05:09]} {[%emt
00:00:09]} 0-1

[Event "II Open Internacional Ateneo Marítimo (60 Aniversario)"]
[Site "C/La reina 68 (Valencia), Spain"]
[Date "2018.09.15"]
[Round "1.3"]
[White "Campos Gambuti, Luis Maria"]
[Black "Gimenez Saiz, Jose Raul"]
[Result "1-0"]
[TimeControl "7m+3s por jugada"]
[WhiteFideId "2226979"]
[BlackFideId "2271320"]
[WhiteElo "2382"]
[BlackElo "1883"]

1. d4 {[%clk 00:07:05]} d5 {[%clk 00:07:01]} {[%emt 00:00:10]} 2. Nc3 {[%clk
00:07:06]} e6 {[%clk 00:06:58]} {[%emt 00:00:09]} 3. e4 {[%clk 00:07:07]} dxe4
{[%clk 00:06:42]} {[%emt 00:00:21]} 4. Nxe4 {[%clk 00:07:09]} Nf6 {[%clk
00:06:27]} {[%emt 00:00:21]} 5. Bg5 {[%clk 00:07:10]} Be7 {[%clk 00:06:28]} 6.
Bxf6 {[%clk 00:07:12]} Bxf6 {[%clk 00:06:30]} {[%emt 00:00:04]} 7. Nxf6+ {[%clk
00:07:13]} Qxf6 {[%clk 00:06:32]} {[%emt 00:00:05]} 8. Nf3 {[%clk 00:07:15]}
O-O {[%clk 00:06:11]} {[%emt 00:00:20]} 9. Qd3 {[%clk 00:07:17]} c5 {[%clk
00:05:38]} {[%emt 00:00:41]} 10. O-O-O {[%clk 00:07:16]} {[%emt 00:00:05]} Nc6
{[%clk 00:04:45]} {[%emt 00:00:50]} 11. Qe3 {[%clk 00:07:17]} {[%emt 00:00:11]}
Nb4 {[%clk 00:04:18]} {[%emt 00:00:29]} 12. dxc5 {[%clk 00:05:29]} {[%emt
00:01:44]} b6 {[%clk 00:03:20]} {[%emt 00:01:01]} 13. a3 {[%clk 00:05:18]}
{[%emt 00:00:14]} a5 {[%clk 00:03:21]} {[%emt 00:00:06]} 14. axb4 {[%clk
00:04:45]} {[%emt 00:00:33]} axb4 {[%clk 00:03:23]} 15. Kb1 {[%clk 00:04:48]}
{[%emt 00:00:05]} Bb7 {[%clk 00:02:40]} {[%emt 00:00:41]} 16. Ne5 {[%clk
00:04:28]} {[%emt 00:00:22]} Rfd8 {[%clk 00:02:09]} {[%emt 00:00:39]} 17. Bc4
{[%clk 00:04:15]} {[%emt 00:00:12]} Bxg2 {[%clk 00:02:02]} {[%emt 00:00:10]} 18.
Rxd8+ {[%clk 00:03:57]} {[%emt 00:00:21]} Qxd8 {[%clk 00:02:01]} {[%emt
00:00:14]} 19. Rg1 {[%clk 00:03:59]} bxc5 {[%clk 00:01:41]} {[%emt 00:00:14]}
20. Qxc5 {[%clk 00:03:37]} {[%emt 00:00:25]} Qd2 {[%clk 00:01:25]} {[%emt
00:00:19]} 21. Nd3 {[%clk 00:02:55]} {[%emt 00:00:44]} Rb8 {[%clk 00:00:51]}
{[%emt 00:00:42]} 22. Rxg2 {[%clk 00:02:44]} {[%emt 00:00:14]} b3 {[%clk
00:00:38]} {[%emt 00:00:18]} 23. Bxb3 {[%clk 00:02:45]} 1-0

[Event "II Open Internacional Ateneo Marítimo (60 Aniversario)"]
[Site "C/La reina 68 (Valencia), Spain"]
[Date "2018.09.15"]
[Round "1.4"]
[White "Lledo Matoses, Daniel"]
[Black "Granero Roca, Antonio"]
[Result "0-1"]
[TimeControl "7m+3s por jugada"]
[WhiteFideId "2294109"]
[BlackFideId "2210509"]
[WhiteElo "1880"]
[BlackElo "2370"]

1. d4 {[%clk 00:07:05]} Nf6 {[%clk 00:07:03]} {[%emt 00:00:14]} 2. c4 {[%clk
00:07:04]} g6 {[%clk 00:07:04]} 3. Nc3 {[%clk 00:07:05]} Bg7 {[%clk 00:07:05]}
4. e4 {[%clk 00:07:05]} {[%emt 00:00:11]} O-O {[%clk 00:07:05]} {[%emt
00:00:08]} 5. Be3 {[%clk 00:07:05]} d6 {[%clk 00:07:07]} 6. f3 {[%clk
00:07:00]} {[%emt 00:00:03]} c6 {[%clk 00:07:03]} {[%emt 00:00:05]} 7. Qd2
{[%clk 00:07:00]} {[%emt 00:00:13]} a6 {[%clk 00:07:05]} 8. a4 {[%clk
00:06:12]} {[%emt 00:00:44]} a5 {[%clk 00:07:01]} {[%emt 00:00:06]} 9. Bh6
{[%clk 00:05:39]} {[%emt 00:00:35]} e5 {[%clk 00:06:57]} {[%emt 00:00:06]} 10.
Bxg7 {[%clk 00:05:18]} {[%emt 00:00:23]} Kxg7 {[%clk 00:06:58]} {[%emt
00:00:38]} 11. Nge2 {[%clk 00:04:31]} {[%emt 00:00:24]} Na6 {[%clk 00:06:53]}
{[%emt 00:00:06]} 12. Rd1 {[%clk 00:04:09]} {[%emt 00:00:41]} Be6 {[%clk
00:06:39]} {[%emt 00:00:03]} 13. d5 {[%clk 00:04:02]} {[%emt 00:00:04]} cxd5
{[%clk 00:06:40]} {[%emt 00:00:03]} 14. cxd5 {[%clk 00:03:34]} {[%emt
00:00:27]} Bd7 {[%clk 00:06:40]} {[%emt 00:00:38]} 15. Ng3 {[%clk 00:03:13]}
Qb6 {[%clk 00:06:36]} 16. Bb5 {[%clk 00:02:58]} {[%emt 00:00:16]} Nb4 {[%clk
00:06:20]} {[%emt 00:00:27]} 17. Qf2 {[%clk 00:02:51]} {[%emt 00:00:14]} Qxf2+
{[%clk 00:06:12]} 18. Kxf2 {[%clk 00:02:52]} Rac8 {[%clk 00:06:13]} {[%emt
00:00:04]} 19. Rd2 {[%clk 00:02:39]} {[%emt 00:00:15]} Rfd8 {[%clk 00:05:23]}
{[%emt 00:01:25]} 20. h4 {[%clk 00:02:37]} h5 {[%clk 00:05:16]} {[%emt
00:00:07]} 21. Nge2 {[%clk 00:02:16]} Kf8 {[%clk 00:05:14]} {[%emt 00:00:06]}
22. Nc1 {[%clk 00:01:50]} {[%emt 00:00:57]} Ke7 {[%clk 00:05:04]} {[%emt
00:00:04]} 23. Nb3 {[%clk 00:01:46]} b6 {[%clk 00:05:02]} 24. Bxd7 {[%clk
00:01:30]} {[%emt 00:00:09]} Nxd7 {[%clk 00:05:03]} {[%emt 00:00:40]} 25. g4
{[%clk 00:01:26]} Nf6 {[%clk 00:04:54]} 26. g5 {[%clk 00:01:12]} Nd7 {[%clk
00:04:56]} {[%emt 00:00:07]} 27. Ke3 {[%clk 00:01:14]} Nc5 {[%clk 00:04:50]}
{[%emt 00:00:10]} 28. Nxc5 {[%clk 00:01:07]} {[%emt 00:00:09]} Rxc5 {[%clk
00:04:52]} 29. Rf1 {[%clk 00:01:05]} Rc4 {[%clk 00:04:47]} {[%emt 00:00:09]} 30.
f4 {[%clk 00:00:44]} {[%emt 00:00:25]} exf4+ {[%clk 00:04:48]} {[%emt
00:00:03]} 31. Rxf4 {[%clk 00:00:45]} Na6 {[%clk 00:04:36]} {[%emt 00:00:28]}
32. e5 {[%clk 00:00:39]} Rxf4 {[%clk 00:04:36]} 33. Kxf4 {[%clk 00:00:40]} Nc5
{[%clk 00:04:27]} {[%emt 00:00:15]} 34. exd6+ {[%clk 00:00:38]} {[%emt
00:00:03]} Rxd6 {[%clk 00:04:27]} {[%emt 00:00:11]} 35. Nb5 {[%clk 00:00:34]}
{[%emt 00:00:10]} Rd7 {[%clk 00:04:21]} 36. Re2+ {[%clk 00:00:32]} {[%emt
00:00:04]} Kf8 {[%clk 00:04:21]} {[%emt 00:00:03]} 37. d6 {[%clk 00:00:29]}
{[%emt 00:00:05]} Nxa4 {[%clk 00:04:14]} {[%emt 00:00:19]} 38. Ke5 {[%clk
00:00:16]} {[%emt 00:00:06]} Nc5 {[%clk 00:03:47]} {[%emt 00:00:33]} 39. Kf6
{[%clk 00:00:18]} {[%emt 00:00:03]} Rd8 {[%clk 00:03:28]} {[%emt 00:00:17]} 40.
Re7 {[%clk 00:00:18]} {[%emt 00:00:27]} Nd7+ {[%clk 00:03:25]} 41. Rxd7 {[%clk
00:00:11]} {[%emt 00:00:10]} Rxd7 {[%clk 00:03:27]} 42. b3 {[%clk 00:00:10]}
Rd8 {[%clk 00:03:13]} {[%emt 00:00:09]} 43. Ke5 {[%clk 00:00:11]} {[%emt
00:00:04]} Ke8 {[%clk 00:03:05]} {[%emt 00:00:04]} 44. Kd5 {[%clk 00:00:12]}
Kd7 {[%clk 00:03:06]} {[%emt 00:00:48]} 45. Nd4 {[%clk 00:07:03]} 0-1

[Event "II Open Internacional Ateneo Marítimo (60 Aniversario)"]
[Site "C/La reina 68 (Valencia), Spain"]
[Date "2018.09.15"]
[Round "1.5"]
[White "Diaz Velandia, Jose Manuel"]
[Black "Soria Martinez, Sergio"]
[Result "1-0"]
[TimeControl "7m+3s por jugada"]
[WhiteFideId "3901939"]
[BlackFideId "2251434"]
[WhiteElo "2368"]
[BlackElo "1879"]

1. d4 {[%clk 00:07:04]} {[%emt 00:00:07]} Nf6 {[%clk 00:07:05]} 2. Nf3 {[%clk
00:07:06]} {[%emt 00:00:04]} g6 {[%clk 00:07:01]} {[%emt 00:00:04]} 3. e3
{[%clk 00:07:08]} Bg7 {[%clk 00:07:03]} 4. Bd3 {[%clk 00:07:10]} d5 {[%clk
00:06:56]} {[%emt 00:00:17]} 5. O-O {[%clk 00:07:11]} O-O {[%clk 00:06:57]} 6.
Nbd2 {[%clk 00:07:13]} b6 {[%clk 00:06:50]} {[%emt 00:00:07]} 7. c3 {[%clk
00:07:14]} {[%emt 00:00:04]} Bb7 {[%clk 00:06:52]} 8. Qe2 {[%clk 00:07:16]}
Nbd7 {[%clk 00:06:52]} {[%emt 00:00:03]} 9. e4 {[%clk 00:07:18]} dxe4 {[%clk
00:06:48]} {[%emt 00:00:08]} 10. Nxe4 {[%clk 00:07:20]} Nxe4 {[%clk 00:06:50]}
{[%emt 00:00:07]} 11. Bxe4 {[%clk 00:07:22]} Bxe4 {[%clk 00:06:47]} {[%emt
00:00:03]} 12. Qxe4 {[%clk 00:07:24]} Nf6 {[%clk 00:06:49]} {[%emt 00:00:03]}
13. Qe2 {[%clk 00:07:26]} e6 {[%clk 00:06:35]} {[%emt 00:00:13]} 14. Bf4 {[%clk
00:07:26]} {[%emt 00:00:37]} Nd5 {[%clk 00:06:36]} 15. Bg3 {[%clk 00:07:27]} h6
{[%clk 00:05:54]} {[%emt 00:00:16]} 16. Rad1 {[%clk 00:07:30]} Rc8 {[%clk
00:05:11]} {[%emt 00:00:50]} 17. Rfe1 {[%clk 00:07:32]} Kh7 {[%clk 00:05:10]}
{[%emt 00:00:07]} 18. h3 {[%clk 00:07:34]} c5 {[%clk 00:04:55]} {[%emt
00:00:13]} 19. dxc5 {[%clk 00:07:36]} {[%emt 00:00:36]} Rxc5 {[%clk 00:04:53]}
20. c4 {[%clk 00:07:37]} Qc8 {[%clk 00:03:22]} {[%emt 00:01:06]} 21. cxd5
{[%clk 00:07:39]} {[%emt 00:00:35]} Rc2 {[%clk 00:03:23]} 22. Rd2 {[%clk
00:07:42]} Rc1 {[%clk 00:03:02]} 23. dxe6 {[%clk 00:07:43]} Rxe1+ {[%clk
00:03:03]} {[%emt 00:00:03]} 24. Qxe1 {[%clk 00:07:45]} fxe6 {[%clk 00:02:58]}
{[%emt 00:00:04]} 25. Be5 {[%clk 00:07:47]} {[%emt 00:00:04]} Rf5 {[%clk
00:02:47]} {[%emt 00:00:23]} 26. Bxg7 {[%clk 00:07:48]} Kxg7 {[%clk 00:02:49]}
27. Rd1 {[%clk 00:07:48]} Rc5 {[%clk 00:02:42]} {[%emt 00:00:08]} 28. Qe3
{[%clk 00:07:46]} {[%emt 00:00:03]} Qc7 {[%clk 00:02:27]} {[%emt 00:00:17]} 29.
Nd4 {[%clk 00:07:48]} {[%emt 00:00:03]} 1-0

[Event "II Open Internacional Ateneo Marítimo (60 Aniversario)"]
[Site "C/La reina 68 (Valencia), Spain"]
[Date "2018.09.15"]
[Round "1.6"]
[White "Siludakis, Hernan"]
[Black "Fenollar Jorda, Manuel"]
[Result "0-1"]
[TimeControl "7m+3s por jugada"]
[WhiteFideId "127965"]
[BlackFideId "2217104"]
[WhiteElo "1864"]
[BlackElo "2342"]

1. e4 {[%clk 00:07:03]} {[%emt 00:00:15]} e5 {[%clk 00:07:05]} 2. Nf3 {[%clk
00:07:05]} Nc6 {[%clk 00:07:07]} 3. Bc4 {[%clk 00:07:06]} Bc5 {[%clk 00:07:08]}
4. c3 {[%clk 00:07:09]} Nf6 {[%clk 00:07:10]} {[%emt 00:00:10]} 5. d3 {[%clk
00:07:11]} d6 {[%clk 00:07:11]} {[%emt 00:00:04]} 6. b4 {[%clk 00:07:12]} Bb6
{[%clk 00:07:10]} 7. a4 {[%clk 00:07:12]} a5 {[%clk 00:07:08]} {[%emt
00:00:04]} 8. b5 {[%clk 00:07:13]} {[%emt 00:00:13]} Ne7 {[%clk 00:07:10]} 9.
Be3 {[%clk 00:07:08]} Ng6 {[%clk 00:07:11]} 10. Nbd2 {[%clk 00:06:48]} {[%emt
00:00:25]} O-O {[%clk 00:06:58]} {[%emt 00:00:36]} 11. g3 {[%clk 00:06:42]}
Bxe3 {[%clk 00:06:34]} {[%emt 00:00:14]} 12. fxe3 {[%clk 00:06:43]} {[%emt
00:00:09]} Be6 {[%clk 00:06:35]} 13. Bxe6 {[%clk 00:06:24]} {[%emt 00:00:23]}
fxe6 {[%clk 00:06:37]} 14. Qb3 {[%clk 00:06:22]} Qe7 {[%clk 00:06:36]} {[%emt
00:00:09]} 15. O-O-O {[%clk 00:05:10]} {[%emt 00:01:18]} c6 {[%clk 00:06:37]}
16. b6 {[%clk 00:04:59]} {[%emt 00:00:12]} Ng4 {[%clk 00:06:07]} {[%emt
00:00:34]} 17. Rhe1 {[%clk 00:04:18]} {[%emt 00:00:34]} Nf2 {[%clk 00:06:01]}
{[%emt 00:00:14]} 18. d4 {[%clk 00:03:18]} {[%emt 00:01:05]} Nxd1 {[%clk
00:05:43]} {[%emt 00:00:15]} 19. Kxd1 {[%clk 00:03:19]} {[%emt 00:00:06]} Kh8
{[%clk 00:05:20]} {[%emt 00:00:25]} 20. Ke2 {[%clk 00:03:10]} {[%emt 00:00:26]}
exd4 {[%clk 00:04:18]} {[%emt 00:01:06]} 21. cxd4 {[%clk 00:03:01]} d5 {[%clk
00:04:11]} {[%emt 00:00:13]} 22. h4 {[%clk 00:02:36]} {[%emt 00:00:50]} Qb4
{[%clk 00:03:15]} {[%emt 00:00:31]} 23. Ng5 {[%clk 00:02:37]} {[%emt 00:00:13]}
dxe4 {[%clk 00:02:08]} {[%emt 00:00:55]} 24. Nxe6 {[%clk 00:02:17]} {[%emt
00:00:27]} Rf7 {[%clk 00:01:26]} {[%emt 00:01:02]} 25. Ng5 {[%clk 00:01:54]}
{[%emt 00:00:12]} Qxb3 {[%clk 00:01:24]} {[%emt 00:00:12]} 26. Nxb3 {[%clk
00:01:56]} Re7 {[%clk 00:01:25]} 27. Nc5 {[%clk 00:01:56]} Rae8 {[%clk
00:01:24]} 28. Rf1 {[%clk 00:01:42]} {[%emt 00:00:13]} h6 {[%clk 00:01:19]}
{[%emt 00:00:26]} 29. Nf7+ {[%clk 00:01:41]} Kg8 {[%clk 00:01:20]} 30. Nd6
{[%clk 00:01:44]} Rd8 {[%clk 00:01:13]} {[%emt 00:00:14]} 31. Ndxe4 {[%clk
00:01:17]} {[%emt 00:00:13]} Ree8 {[%clk 00:01:14]} {[%emt 00:00:29]} 32. Kd3
{[%clk 00:01:14]} Ne7 {[%clk 00:01:16]} 33. Ne6 {[%clk 00:01:14]} Rb8 {[%clk
00:01:14]} 34. Nc7 {[%clk 00:01:12]} Red8 {[%clk 00:01:12]} 35. Nc5 {[%clk
00:01:14]} Nd5 {[%clk 00:01:13]} {[%emt 00:00:10]} 36. N7e6 {[%clk 00:01:09]}
{[%emt 00:00:03]} Re8 {[%clk 00:01:09]} {[%emt 00:00:06]} 37. e4 {[%clk
00:01:03]} {[%emt 00:00:06]} Nxb6 {[%clk 00:01:03]} {[%emt 00:00:09]} 38. Nc7
{[%clk 00:00:50]} {[%emt 00:00:23]} Re7 {[%clk 00:01:01]} {[%emt 00:00:03]} 39.
N7e6 {[%clk 00:00:41]} {[%emt 00:00:10]} Nxa4 {[%clk 00:01:00]} {[%emt
00:00:03]} 40. Kc4 {[%clk 00:00:43]} {[%emt 00:00:11]} b5+ {[%clk 00:00:55]}
{[%emt 00:00:07]} 41. Kd3 {[%clk 00:00:42]} Nxc5+ {[%clk 00:00:54]} 42. Nxc5
{[%clk 00:00:42]} {[%emt 00:00:06]} Rd8 {[%clk 00:00:51]} {[%emt 00:00:20]} 43.
Rf4 {[%clk 00:00:39]} a4 {[%clk 00:00:52]} 44. Kc3 {[%clk 00:00:39]} Rf7 {[%clk
00:00:39]} {[%emt 00:00:16]} 45. e5 {[%clk 00:00:35]} {[%emt 00:00:03]} a3
{[%clk 00:00:26]} {[%emt 00:00:33]} 46. Kb3 {[%clk 00:00:35]} Rxf4 {[%clk
00:00:27]} 47. gxf4 {[%clk 00:00:34]} Rxd4 {[%clk 00:00:29]} {[%emt 00:00:07]}
48. e6 {[%clk 00:00:36]} Kf8 {[%clk 00:00:24]} 49. Kxa3 {[%clk 00:00:36]} Rxf4
{[%clk 00:00:21]} 50. Kb3 {[%clk 00:00:32]} {[%emt 00:00:17]} Ke7 {[%clk
00:00:24]} 51. Kc3 {[%clk 00:00:33]} Rxh4 {[%clk 00:00:25]} 52. Nd3 {[%clk
00:00:34]} {[%emt 00:00:12]} Rc4+ {[%clk 00:00:27]} {Bandera} 0-1